Workbook

Sheet паспорт
A1: ПАТ "УКРТРАНСГАЗ" | G1: ПАСПОРТ ФІЗИКО-ХІМІЧНИХ ПОКАЗНИКІВ ПРИРОДНОГО ГАЗУ № 63
A2: Філія "УМГ "Київтрансгаз" | G2: переданого Лубенським ЛВУМГ та прийнятого ПАТ "Лубнигаз", ПАТ "Полтавагаз"
A3: Лубенський п/м Лубенське ЛВУМГ | G3: Маршрут № 63
A4: Вимірювальна хіміко-аналітична лабораторія
A5: Свідоцтво № 199-15 чинно до 31.12.2018 р. | K5: по газопроводу " Єлецьк-Курськ-Київ " | V5: за період з | X5: 2017-05-01 | Z5: по | AA5: 2017-05-31
A7: Число місяця | B7: Компонентний склад, % мол. | N7: Фізико-хімічні показники газу обчислені на основі компонентного складу, 101,325 кПа | X7: Температура точки роси за вологою (Р = 3.92 МПа), ºС | Y7: Температура точки роси за вуглеводнями, ºС | Z7: Вміст сірководню, г/м3 | AA7: Вміст меркаптанової сірки, г/м3 | AB7: Вміст механічних домішок, г/м3
N8: Густина абсолютна, кг/м3,при 20 ºС, | O8: Температура вимірювання/згоряння при 20/25°С
B9: метан, С1 | C9: етан, С2 | D9: пропан, С3 | E9: ізо-бутан, і-С4 | F9: н-бутан, н-С4 | G9: нео-пентан, нео-С5 | H9: ізо-пентан, і-С5 | I9: н-пентан, н-С5 | J9: гексани та вищі, С6+ | K9: кисень, О2 | L9: азот, N2 | M9: діоксид вуглецю, CО2 | O9: Теплота згоряння нижча | R9: Теплота згоряння вища | U9: Число Воббе вище
O10: ккал/м3 | P10: МДж/м3 | Q10: кВт⋅год/м3 | R10: ккал/м3 | S10: МДж/м3 | T10: кВт⋅год/м3 | U10: ккал/м3 | V10: МДж/м3 | W10: кВт⋅год/м3
A11: 1 | O11: 8203 | P11: 34.34 | Q11: 9.538888889 | R11: 9094 | S11: 38.07 | T11: 10.575 | U11: 11841 | V11: 49.57 | W11: 13.76944444 | AC11: =SUM(B11:M11)+$K$42+$N$42 -> 0
A12: 2 | B12: =[1]Лист1!$D$235 -> 90.9338 | C12: =[1]Лист1!$D$236 -> 4.464 | D12: =[1]Лист1!$D$237 -> 1.114 | E12: =[1]Лист1!$D$238 -> 0.124 | F12: =[1]Лист1!$D$239 -> 0.202 | G12: =[1]Лист1!$D$240 -> 0.0044 | H12: =[1]Лист1!$D$241 -> 0.0601 | I12: =[1]Лист1!$D$242 -> 0.0461 | J12: =[1]Лист1!$D$243 -> 0.0593 | K12: =[1]Лист1!$D$244 -> 0.0073 | L12: =[1]Лист1!$D$245 -> 2.048 | M12: =[1]Лист1!$D$246 -> 0.937 | N12: =[1]Лист1!$F$252 -> 0.7387 | O12: =[2]Лист1!$F$199 -> 8269 | P12: =[2]Лист1!$F$198 -> 34.62 | Q12: =[2]Лист1!$F$204 -> 9.616666667 | R12: =[2]Лист1!$F$201 -> 9160 | S12: =[2]Лист1!$F$200 -> 38.35 | T12: =[2]Лист1!$F$205 -> 10.65277778 | U12: =[2]Лист1!$F$203 -> 11696 | V12: =[2]Лист1!$F$202 -> 48.97 | W12: =V12/3.6 -> 13.60277778 | X12: -14.5 | Y12: -12.1 | AC12: 100
A13: 3 | O13: =[2]Лист1!$F$199 -> 8269 | P13: =[2]Лист1!$F$198 -> 34.62 | Q13: =[2]Лист1!$F$204 -> 9.616666667 | R13: =[2]Лист1!$F$201 -> 9160 | S13: =[2]Лист1!$F$200 -> 38.35 | T13: =[2]Лист1!$F$205 -> 10.65277778 | U13: =[2]Лист1!$F$203 -> 11696 | V13: =[2]Лист1!$F$202 -> 48.97 | W13: =V13/3.6 -> 13.60277778 | AC13: 0 | AD13: =IF(AC13=100,"ОК"," ") -> 
A14: 4 | O14: =[2]Лист1!$F$199 -> 8269 | P14: =[2]Лист1!$F$198 -> 34.62 | Q14: =[2]Лист1!$F$204 -> 9.616666667 | R14: =[2]Лист1!$F$201 -> 9160 | S14: =[2]Лист1!$F$200 -> 38.35 | T14: =[2]Лист1!$F$205 -> 10.65277778 | U14: =[2]Лист1!$F$203 -> 11696 | V14: =[2]Лист1!$F$202 -> 48.97 | W14: 13.60277778 | AC14: 0 | AD14: =IF(AC14=100,"ОК"," ") -> 
A15: 5 | O15: =[2]Лист1!$F$199 -> 8269 | P15: =[2]Лист1!$F$198 -> 34.62 | Q15: =[2]Лист1!$F$204 -> 9.616666667 | R15: =[2]Лист1!$F$201 -> 9160 | S15: =[2]Лист1!$F$200 -> 38.35 | T15: =[2]Лист1!$F$205 -> 10.65277778 | U15: =[2]Лист1!$F$203 -> 11696 | V15: =[2]Лист1!$F$202 -> 48.97 | W15: 13.60277778 | AC15: 0
A16: 6 | O16: =[2]Лист1!$F$199 -> 8269 | P16: =[2]Лист1!$F$198 -> 34.62 | Q16: =[2]Лист1!$F$204 -> 9.616666667 | R16: =[2]Лист1!$F$201 -> 9160 | S16: =[2]Лист1!$F$200 -> 38.35 | T16: =[2]Лист1!$F$205 -> 10.65277778 | U16: =[2]Лист1!$F$203 -> 11696 | V16: =[2]Лист1!$F$202 -> 48.97 | W16: 13.60277778 | AC16: 0
A17: 7 | O17: =[2]Лист1!$F$199 -> 8269 | P17: =[2]Лист1!$F$198 -> 34.62 | Q17: =[2]Лист1!$F$204 -> 9.616666667 | R17: =[2]Лист1!$F$201 -> 9160 | S17: =[2]Лист1!$F$200 -> 38.35 | T17: =[2]Лист1!$F$205 -> 10.65277778 | U17: =[2]Лист1!$F$203 -> 11696 | V17: =[2]Лист1!$F$202 -> 48.97 | W17: 13.60277778 | AC17: 0
A18: 8 | O18: =[2]Лист1!$F$199 -> 8269 | P18: =[2]Лист1!$F$198 -> 34.62 | Q18: =[2]Лист1!$F$204 -> 9.616666667 | R18: =[2]Лист1!$F$201 -> 9160 | S18: =[2]Лист1!$F$200 -> 38.35 | T18: =[2]Лист1!$F$205 -> 10.65277778 | U18: =[2]Лист1!$F$203 -> 11696 | V18: =[2]Лист1!$F$202 -> 48.97 | W18: 13.60277778 | AC18: 0
A19: 9 | B19: =[3]Лист1!$D$235 -> 90.8356 | C19: =[3]Лист1!$D$236 -> 4.529 | D19: =[3]Лист1!$D$237 -> 1.16 | E19: =[3]Лист1!$D$238 -> 0.131 | F19: =[3]Лист1!$D$239 -> 0.215 | G19: =[3]Лист1!$D$240 -> 0.0042 | H19: =[3]Лист1!$D$241 -> 0.0598 | I19: =[3]Лист1!$D$242 -> 0.0486 | J19: =[3]Лист1!$D$243 -> 0.0674 | K19: =[3]Лист1!$D$244 -> 0.0044 | L19: =[3]Лист1!$D$245 -> 1.972 | M19: =[3]Лист1!$D$246 -> 0.973 | N19: =[3]Лист1!$F$252 -> 0.7403 | O19: =[4]Лист1!$F$199 -> 8289 | P19: =[4]Лист1!$F$198 -> 34.71 | Q19: =[4]Лист1!$F$204 -> 9.641666667 | R19: =[4]Лист1!$F$201 -> 9182 | S19: =[4]Лист1!$F$200 -> 38.44 | T19: =[4]Лист1!$F$205 -> 10.67777778 | U19: =[4]Лист1!$F$203 -> 11711 | V19: =[4]Лист1!$F$202 -> 49.03 | W19: =V19/3.6 -> 13.61944444 | X19: -16.4 | Y19: -12.5 | AC19: 100 | AD19: ОК
A20: 10 | O20: =[4]Лист1!$F$199 -> 8289 | P20: =[4]Лист1!$F$198 -> 34.71 | Q20: =[4]Лист1!$F$204 -> 9.641666667 | R20: =[4]Лист1!$F$201 -> 9182 | S20: =[4]Лист1!$F$200 -> 38.44 | T20: =[4]Лист1!$F$205 -> 10.67777778 | U20: =[4]Лист1!$F$203 -> 11711 | V20: =[4]Лист1!$F$202 -> 49.03 | W20: =V20/3.6 -> 13.61944444 | AC20: 0
A21: 11 | O21: =[4]Лист1!$F$199 -> 8289 | P21: =[4]Лист1!$F$198 -> 34.71 | Q21: =[4]Лист1!$F$204 -> 9.641666667 | R21: =[4]Лист1!$F$201 -> 9182 | S21: =[4]Лист1!$F$200 -> 38.44 | T21: =[4]Лист1!$F$205 -> 10.67777778 | U21: =[4]Лист1!$F$203 -> 11711 | V21: =[4]Лист1!$F$202 -> 49.03 | W21: 13.61944444 | AC21: 0
A22: 12 | O22: =[4]Лист1!$F$199 -> 8289 | P22: =[4]Лист1!$F$198 -> 34.71 | Q22: =[4]Лист1!$F$204 -> 9.641666667 | R22: =[4]Лист1!$F$201 -> 9182 | S22: =[4]Лист1!$F$200 -> 38.44 | T22: =[4]Лист1!$F$205 -> 10.67777778 | U22: =[4]Лист1!$F$203 -> 11711 | V22: =[4]Лист1!$F$202 -> 49.03 | W22: 13.61944444 | AB22: відсут. | AC22: 0
A23: 13 | O23: =[4]Лист1!$F$199 -> 8289 | P23: =[4]Лист1!$F$198 -> 34.71 | Q23: =[4]Лист1!$F$204 -> 9.641666667 | R23: =[4]Лист1!$F$201 -> 9182 | S23: =[4]Лист1!$F$200 -> 38.44 | T23: =[4]Лист1!$F$205 -> 10.67777778 | U23: =[4]Лист1!$F$203 -> 11711 | V23: =[4]Лист1!$F$202 -> 49.03 | W23: 13.61944444 | AC23: 0
A24: 14 | O24: =[4]Лист1!$F$199 -> 8289 | P24: =[4]Лист1!$F$198 -> 34.71 | Q24: =[4]Лист1!$F$204 -> 9.641666667 | R24: =[4]Лист1!$F$201 -> 9182 | S24: =[4]Лист1!$F$200 -> 38.44 | T24: =[4]Лист1!$F$205 -> 10.67777778 | U24: =[4]Лист1!$F$203 -> 11711 | V24: =[4]Лист1!$F$202 -> 49.03 | W24: 13.61944444 | AC24: 0
A25: 15 | B25: =[5]Лист1!$D$235 -> 90.8046 | C25: =[5]Лист1!$D$236 -> 4.525 | D25: =[5]Лист1!$D$237 -> 1.088 | E25: =[5]Лист1!$D$238 -> 0.119 | F25: =[5]Лист1!$D$239 -> 0.193 | G25: =[5]Лист1!$D$240 -> 0.0043 | H25: =[5]Лист1!$D$241 -> 0.0537 | I25: =[5]Лист1!$D$242 -> 0.0426 | J25: =[5]Лист1!$D$243 -> 0.0598 | K25: =[5]Лист1!$D$244 -> 0.012 | L25: =[5]Лист1!$D$245 -> 2.139 | M25: =[5]Лист1!$D$246 -> 0.959 | N25: =[5]Лист1!$F$252 -> 0.739 | O25: =[6]Лист1!$F$199 -> 8255 | P25: =[6]Лист1!$F$198 -> 34.56 | Q25: =[6]Лист1!$F$204 -> 9.6 | R25: =[6]Лист1!$F$201 -> 9145 | S25: =[6]Лист1!$F$200 -> 38.29 | T25: =[6]Лист1!$F$205 -> 10.63611111 | U25: =[6]Лист1!$F$203 -> 11674 | V25: =[6]Лист1!$F$202 -> 48.88 | W25: =V25/3.6 -> 13.57777778 | X25: -14.8 | Y25: -11.1 | Z25: 0.0004 | AA25: 0.0007 | AC25: 100 | AD25: ОК
A26: 16 | O26: =[6]Лист1!$F$199 -> 8255 | P26: =[6]Лист1!$F$198 -> 34.56 | Q26: =[6]Лист1!$F$204 -> 9.6 | R26: =[6]Лист1!$F$201 -> 9145 | S26: =[6]Лист1!$F$200 -> 38.29 | T26: =[6]Лист1!$F$205 -> 10.63611111 | U26: =[6]Лист1!$F$203 -> 11674 | V26: =[6]Лист1!$F$202 -> 48.88 | W26: =V26/3.6 -> 13.57777778 | AC26: 0
A27: 17 | O27: =[6]Лист1!$F$199 -> 8255 | P27: =[6]Лист1!$F$198 -> 34.56 | Q27: =[6]Лист1!$F$204 -> 9.6 | R27: =[6]Лист1!$F$201 -> 9145 | S27: =[6]Лист1!$F$200 -> 38.29 | T27: =[6]Лист1!$F$205 -> 10.63611111 | U27: =[6]Лист1!$F$203 -> 11674 | V27: =[6]Лист1!$F$202 -> 48.88 | W27: 13.57777778 | AC27: 0
A28: 18 | O28: =[6]Лист1!$F$199 -> 8255 | P28: =[6]Лист1!$F$198 -> 34.56 | Q28: =[6]Лист1!$F$204 -> 9.6 | R28: =[6]Лист1!$F$201 -> 9145 | S28: =[6]Лист1!$F$200 -> 38.29 | T28: =[6]Лист1!$F$205 -> 10.63611111 | U28: =[6]Лист1!$F$203 -> 11674 | V28: =[6]Лист1!$F$202 -> 48.88 | W28: 13.57777778 | AC28: 0
A29: 19 | O29: =[6]Лист1!$F$199 -> 8255 | P29: =[6]Лист1!$F$198 -> 34.56 | Q29: =[6]Лист1!$F$204 -> 9.6 | R29: =[6]Лист1!$F$201 -> 9145 | S29: =[6]Лист1!$F$200 -> 38.29 | T29: =[6]Лист1!$F$205 -> 10.63611111 | U29: =[6]Лист1!$F$203 -> 11674 | V29: =[6]Лист1!$F$202 -> 48.88 | W29: 13.57777778 | AC29: 0
A30: 20 | O30: =[6]Лист1!$F$199 -> 8255 | P30: =[6]Лист1!$F$198 -> 34.56 | Q30: =[6]Лист1!$F$204 -> 9.6 | R30: =[6]Лист1!$F$201 -> 9145 | S30: =[6]Лист1!$F$200 -> 38.29 | T30: =[6]Лист1!$F$205 -> 10.63611111 | U30: =[6]Лист1!$F$203 -> 11674 | V30: =[6]Лист1!$F$202 -> 48.88 | W30: 13.57777778 | AC30: 0 | AD30: =IF(AC30=100,"ОК"," ") -> 
A31: 21 | O31: =[6]Лист1!$F$199 -> 8255 | P31: =[6]Лист1!$F$198 -> 34.56 | Q31: =[6]Лист1!$F$204 -> 9.6 | R31: =[6]Лист1!$F$201 -> 9145 | S31: =[6]Лист1!$F$200 -> 38.29 | T31: =[6]Лист1!$F$205 -> 10.63611111 | U31: =[6]Лист1!$F$203 -> 11674 | V31: =[6]Лист1!$F$202 -> 48.88 | W31: 13.57777778 | AC31: 0
A32: 22 | B32: =[7]Лист1!$D$235 -> 90.8029 | C32: =[7]Лист1!$D$236 -> 4.507 | D32: =[7]Лист1!$D$237 -> 1.071 | E32: =[7]Лист1!$D$238 -> 0.122 | F32: =[7]Лист1!$D$239 -> 0.197 | G32: =[7]Лист1!$D$240 -> 0.0043 | H32: =[7]Лист1!$D$241 -> 0.0546 | I32: =[7]Лист1!$D$242 -> 0.0439 | J32: =[7]Лист1!$D$243 -> 0.0582 | K32: =[7]Лист1!$D$244 -> 0.0091 | L32: =[7]Лист1!$D$245 -> 2.16 | M32: =[7]Лист1!$D$246 -> 0.97 | N32: =[7]Лист1!$F$252 -> 0.7391 | O32: =[8]Лист1!$F$199 -> 8251 | P32: =[8]Лист1!$F$198 -> 34.55 | Q32: =[8]Лист1!$F$204 -> 9.597222222 | R32: =[8]Лист1!$F$201 -> 9140 | S32: =[8]Лист1!$F$200 -> 38.27 | T32: =[8]Лист1!$F$205 -> 10.63055556 | U32: =[8]Лист1!$F$203 -> 11668 | V32: =[8]Лист1!$F$202 -> 48.85 | W32: =V32/3.6 -> 13.56944444 | X32: -12.4 | Y32: -9.1 | AC32: 100 | AD32: ОК
A33: 23 | O33: =[8]Лист1!$F$199 -> 8251 | P33: =[8]Лист1!$F$198 -> 34.55 | Q33: =[8]Лист1!$F$204 -> 9.597222222 | R33: =[8]Лист1!$F$201 -> 9140 | S33: =[8]Лист1!$F$200 -> 38.27 | T33: =[8]Лист1!$F$205 -> 10.63055556 | U33: =[8]Лист1!$F$203 -> 11668 | V33: =[8]Лист1!$F$202 -> 48.85 | W33: =V33/3.6 -> 13.56944444 | AC33: 0 | AD33: =IF(AC33=100,"ОК"," ") -> 
A34: 24 | O34: =[8]Лист1!$F$199 -> 8251 | P34: =[8]Лист1!$F$198 -> 34.55 | Q34: =[8]Лист1!$F$204 -> 9.597222222 | R34: =[8]Лист1!$F$201 -> 9140 | S34: =[8]Лист1!$F$200 -> 38.27 | T34: =[8]Лист1!$F$205 -> 10.63055556 | U34: =[8]Лист1!$F$203 -> 11668 | V34: =[8]Лист1!$F$202 -> 48.85 | W34: 13.56944444 | AC34: 0
A35: 25 | O35: =[8]Лист1!$F$199 -> 8251 | P35: =[8]Лист1!$F$198 -> 34.55 | Q35: =[8]Лист1!$F$204 -> 9.597222222 | R35: =[8]Лист1!$F$201 -> 9140 | S35: =[8]Лист1!$F$200 -> 38.27 | T35: =[8]Лист1!$F$205 -> 10.63055556 | U35: =[8]Лист1!$F$203 -> 11668 | V35: =[8]Лист1!$F$202 -> 48.85 | W35: 13.56944444 | AC35: 0
A36: 26 | O36: =[8]Лист1!$F$199 -> 8251 | P36: =[8]Лист1!$F$198 -> 34.55 | Q36: =[8]Лист1!$F$204 -> 9.597222222 | R36: =[8]Лист1!$F$201 -> 9140 | S36: =[8]Лист1!$F$200 -> 38.27 | T36: =[8]Лист1!$F$205 -> 10.63055556 | U36: =[8]Лист1!$F$203 -> 11668 | V36: =[8]Лист1!$F$202 -> 48.85 | W36: 13.56944444 | AC36: 0
A37: 27 | O37: =[8]Лист1!$F$199 -> 8251 | P37: =[8]Лист1!$F$198 -> 34.55 | Q37: =[8]Лист1!$F$204 -> 9.597222222 | R37: =[8]Лист1!$F$201 -> 9140 | S37: =[8]Лист1!$F$200 -> 38.27 | T37: =[8]Лист1!$F$205 -> 10.63055556 | U37: =[8]Лист1!$F$203 -> 11668 | V37: =[8]Лист1!$F$202 -> 48.85 | W37: 13.56944444 | AC37: 0
A38: 28 | O38: =[8]Лист1!$F$199 -> 8251 | P38: =[8]Лист1!$F$198 -> 34.55 | Q38: =[8]Лист1!$F$204 -> 9.597222222 | R38: =[8]Лист1!$F$201 -> 9140 | S38: =[8]Лист1!$F$200 -> 38.27 | T38: =[8]Лист1!$F$205 -> 10.63055556 | U38: =[8]Лист1!$F$203 -> 11668 | V38: =[8]Лист1!$F$202 -> 48.85 | W38: 13.56944444 | AC38: 0
A39: 29 | B39: =[9]Лист1!$D$235 -> 90.5009 | C39: =[9]Лист1!$D$236 -> 4.641 | D39: =[9]Лист1!$D$237 -> 1.222 | E39: =[9]Лист1!$D$238 -> 0.132 | F39: =[9]Лист1!$D$239 -> 0.215 | G39: =[9]Лист1!$D$240 -> 0.0042 | H39: =[9]Лист1!$D$241 -> 0.0626 | I39: =[9]Лист1!$D$242 -> 0.0523 | J39: =[9]Лист1!$D$243 -> 0.0721 | K39: =[9]Лист1!$D$244 -> 0.0079 | L39: =[9]Лист1!$D$245 -> 2.075 | M39: =[9]Лист1!$D$246 -> 1.015 | N39: =[9]Лист1!$F$252 -> 0.743 | O39: =[10]Лист1!$F$199 -> 8295 | P39: =[10]Лист1!$F$198 -> 34.73 | Q39: =[10]Лист1!$F$204 -> 9.647222222 | R39: =[10]Лист1!$F$201 -> 9188 | S39: =[10]Лист1!$F$200 -> 38.47 | T39: =[10]Лист1!$F$205 -> 10.68611111 | U39: =[10]Лист1!$F$203 -> 11697 | V39: =[10]Лист1!$F$202 -> 48.98 | W39: =V39/3.6 -> 13.60555556 | X39: -8.9 | Y39: -4.6 | AC39: 100 | AD39: ОК
A40: 30 | O40: =[10]Лист1!$F$199 -> 8295 | P40: =[10]Лист1!$F$198 -> 34.73 | Q40: =[10]Лист1!$F$204 -> 9.647222222 | R40: =[10]Лист1!$F$201 -> 9188 | S40: =[10]Лист1!$F$200 -> 38.47 | T40: =[10]Лист1!$F$205 -> 10.68611111 | U40: =[10]Лист1!$F$203 -> 11697 | V40: =[10]Лист1!$F$202 -> 48.98 | W40: =V40/3.6 -> 13.60555556 | AC40: 0
A41: 31 | O41: =[10]Лист1!$F$199 -> 8295 | P41: =[10]Лист1!$F$198 -> 34.73 | Q41: =[10]Лист1!$F$204 -> 9.647222222 | R41: =[10]Лист1!$F$201 -> 9188 | S41: =[10]Лист1!$F$200 -> 38.47 | T41: =[10]Лист1!$F$205 -> 10.68611111 | U41: =[10]Лист1!$F$203 -> 11697 | V41: =[10]Лист1!$F$202 -> 48.98 | W41: 13.60555556 | AC41: 0
A42: Рівень одоризації відповідає вимогам чинних нормативних документів | O42: =SUMPRODUCT(O11:O41,' розрахунок'!I7:I37)/' розрахунок'!I38 -> 8268.391944 | P42: =SUMPRODUCT(P11:P41,' розрахунок'!I7:I37)/' розрахунок'!I38 -> 34.61990711 | Q42: =SUMPRODUCT(Q11:Q41,' розрахунок'!I7:I37)/' розрахунок'!I38 -> 9.616640863 | R42: 9159 | S42: =SUMPRODUCT(S11:S41,' розрахунок'!I7:I37)/' розрахунок'!I38 -> 38.34884348 | T42: =SUMPRODUCT(T11:T41,' розрахунок'!I7:I37)/' розрахунок'!I38 -> 10.65245652
H43: Середньозважене значення теплоти згоряння:
B46: Головний інженер Лубенського ЛВУМГ Сирота В.П. 01.06.2017 року
C47: Підрозділу підприємства, якому підпорядкована лабораторія | O47: прізвище | R47: підпис | V47: дата
B48: Завідувач лабораторією Лубенського ЛВУМГ Алєксєєнко Н.А. 01.06.2017 року
C49: Лабораторія, де здійснювалось вимірювання газу | O49: прізвище | R49: підпис | V49: дата
B50: Начальник служби ГВ та М Шило О.Є. 01.06.2017 року
C51: Підрозділу, відповідального за облік газу за маршрутом | O51: прізвище | R51: підпис | V51: дата

Sheet розрахунок
A2: Додаток до Паспорту фізико-хімічних показників природного газу по маршруту № 63
A4: Число місяця | B4: Теплота згоряння вища, МДж/м3 | C4: Полтавська | I4: Загальний обсяг газу, м3
C5: Обсяг газу переданого за добу, м3
C6: ГРС Лука | D6: ГРс Ісківці | E6: ГРС Безсали | F6: ГРС Яцини | G6: ГРС Кейбалівка | H6: ГРС Каплинці
A7: 1 | B7: 38.07 | C7: 615.8 | D7: 689.1 | E7: 1086.1 | F7: 737.6 | G7: 1177.7 | H7: 282.6 | I7: =SUM(C7:H7) -> 4588.9
A8: 2 | B8: =[2]Лист1!$F$200 -> 38.35 | C8: 464.7 | D8: 647.2 | E8: 1139.8 | F8: 657.6 | G8: 1275.2 | H8: 277.1 | I8: =SUM(C8:H8) -> 4461.6
A9: 3 | B9: =[2]Лист1!$F$200 -> 38.35 | C9: 500.2 | D9: 659.9 | E9: 1081.7 | F9: 698.2 | G9: 1297.1 | H9: 255.8 | I9: =SUM(C9:H9) -> 4492.9
A10: 4 | B10: =[2]Лист1!$F$200 -> 38.35 | C10: 482.2 | D10: 641.9 | E10: 1043.4 | F10: 719.1 | G10: 1146.6 | H10: 272.9 | I10: =SUM(C10:H10) -> 4306.1
A11: 5 | B11: =[2]Лист1!$F$200 -> 38.35 | C11: 621.2 | D11: 609.9 | E11: 1067.1 | F11: 764.1 | G11: 1199.8 | H11: 225.6 | I11: =SUM(C11:H11) -> 4487.7
A12: 6 | B12: =[2]Лист1!$F$200 -> 38.35 | C12: 539.9 | D12: 638.8 | E12: 1020 | F12: 756.1 | G12: 1188.3 | H12: 260.3 | I12: =SUM(C12:H12) -> 4403.4
A13: 7 | B13: =[2]Лист1!$F$200 -> 38.35 | C13: 314.2 | D13: 569.9 | E13: 925.1 | F13: 665.6 | G13: 968.8 | H13: 243.3 | I13: =SUM(C13:H13) -> 3686.9
A14: 8 | B14: =[2]Лист1!$F$200 -> 38.35 | C14: 260.3 | D14: 536.9 | E14: 1065.4 | F14: 672.5 | G14: 1092.9 | H14: 252.4 | I14: =SUM(C14:H14) -> 3880.4
A15: 9 | B15: =[4]Лист1!$F$200 -> 38.44 | C15: 953.5 | D15: 743 | E15: 1301.1 | F15: 814.2 | G15: 1423.1 | H15: 388.7 | I15: =SUM(C15:H15) -> 5623.6
A16: 10 | B16: =[4]Лист1!$F$200 -> 38.44 | C16: 1757 | D16: 1282 | E16: 2063.1 | F16: 1161.1 | G16: 2190.4 | H16: 595 | I16: =SUM(C16:H16) -> 9048.6
A17: 11 | B17: =[4]Лист1!$F$200 -> 38.44 | C17: 1649.2 | D17: 1287.1 | E17: 1883.5 | F17: 1256.5 | G17: 2124 | H17: 633.9 | I17: =SUM(C17:H17) -> 8834.2
A18: 12 | B18: =[4]Лист1!$F$200 -> 38.44 | C18: 1801 | D18: 1173.8 | E18: 1782 | F18: 1167.5 | G18: 2033 | H18: 637.9 | I18: =SUM(C18:H18) -> 8595.2
A19: 13 | B19: =[4]Лист1!$F$200 -> 38.44 | C19: 2151.8 | D19: 1594.4 | E19: 2328.1 | F19: 1530.8 | G19: 2887.7 | H19: 784.5 | I19: =SUM(C19:H19) -> 11277.3
A20: 14 | B20: =[4]Лист1!$F$200 -> 38.44 | C20: 1844 | D20: 1339.7 | E20: 1886.9 | F20: 1181 | G20: 2380.2 | H20: 596.4 | I20: =SUM(C20:H20) -> 9228.2
A21: 15 | B21: =[6]Лист1!$F$200 -> 38.29 | C21: 1243.6 | D21: 839.3 | E21: 1224.8 | F21: 799.7 | G21: 1461.7 | H21: 353.4 | I21: =SUM(C21:H21) -> 5922.5
A22: 16 | B22: =[6]Лист1!$F$200 -> 38.29 | C22: 1122.3 | D22: 691.9 | E22: 1159.2 | F22: 712.4 | G22: 1263.5 | H22: 332.9 | I22: =SUM(C22:H22) -> 5282.2
A23: 17 | B23: =[6]Лист1!$F$200 -> 38.29 | C23: 1189.8 | D23: 855.6 | E23: 1383.8 | F23: 773.8 | G23: 1439.7 | H23: 376.8 | I23: =SUM(C23:H23) -> 6019.5
A24: 18 | B24: =[6]Лист1!$F$200 -> 38.29 | C24: 1566.8 | D24: 937.7 | E24: 1538.1 | F24: 845.5 | G24: 1626.2 | H24: 469.7 | I24: =SUM(C24:H24) -> 6984
A25: 19 | B25: =[6]Лист1!$F$200 -> 38.29 | C25: 1575.5 | D25: 1004.3 | E25: 1657.9 | F25: 888.3 | G25: 1597.4 | H25: 387.9 | I25: =SUM(C25:H25) -> 7111.3
A26: 20 | B26: =[6]Лист1!$F$200 -> 38.29 | C26: 1271.2 | D26: 863.4 | E26: 1373.8 | F26: 875.9 | G26: 1481.7 | H26: 368.5 | I26: =SUM(C26:H26) -> 6234.5
A27: 21 | B27: =[6]Лист1!$F$200 -> 38.29 | C27: 1254.5 | D27: 728.6 | E27: 1363.6 | F27: 870.5 | G27: 1268.6 | H27: 326.8 | I27: =SUM(C27:H27) -> 5812.6
A28: 22 | B28: =[8]Лист1!$F$200 -> 38.27 | C28: 968.5 | D28: 599.7 | E28: 1074.2 | F28: 638.8 | G28: 1090.5 | H28: 252.7 | I28: =SUM(C28:H28) -> 4624.4
A29: 23 | B29: =[8]Лист1!$F$200 -> 38.27 | C29: 786.9 | D29: 576.3 | E29: 925.2 | F29: 616 | G29: 963.9 | H29: 244.3 | I29: =SUM(C29:H29) -> 4112.6
A30: 24 | B30: =[8]Лист1!$F$200 -> 38.27 | C30: 729.1 | D30: 0 | E30: 857 | F30: 556.8 | G30: 948.4 | H30: 210.5 | I30: =SUM(C30:H30) -> 3301.8
A31: 25 | B31: =[8]Лист1!$F$200 -> 38.27 | C31: 703.9 | D31: 546.9 | E31: 808.4 | F31: 519.9 | G31: 894.4 | H31: 204 | I31: =SUM(C31:H31) -> 3677.5
A32: 26 | B32: =[8]Лист1!$F$200 -> 38.27 | C32: 699.4 | D32: 508.7 | E32: 772.7 | F32: 544.1 | G32: 943.4 | H32: 203.6 | I32: =SUM(C32:H32) -> 3671.9
A33: 27 | B33: =[8]Лист1!$F$200 -> 38.27 | C33: 743.7 | D33: 510.5 | E33: 862.7 | F33: 630 | G33: 1030.7 | H33: 241 | I33: =SUM(C33:H33) -> 4018.6
A34: 28 | B34: =[8]Лист1!$F$200 -> 38.27 | C34: 755.5 | D34: 506.7 | E34: 831.1 | F34: 594.7 | G34: 983.1 | H34: 215.2 | I34: =SUM(C34:H34) -> 3886.3
A35: 29 | B35: =[10]Лист1!$F$200 -> 38.47 | C35: 634.4 | D35: 415.8 | E35: 688.3 | F35: 518.7 | G35: 853.9 | H35: 192.6 | I35: =SUM(C35:H35) -> 3303.7
A36: 30 | B36: =[10]Лист1!$F$200 -> 38.47 | C36: 571.8 | D36: 381.8 | E36: 678 | F36: 470.7 | G36: 836.5 | H36: 197.9 | I36: =SUM(C36:H36) -> 3136.7
A37: 31 | B37: =[10]Лист1!$F$200 -> 38.47 | C37: 587.3 | D37: 366.7 | E37: 659.6 | F37: 493.8 | G37: 794 | H37: 178.6 | I37: =SUM(C37:H37) -> 3080
A38: Загальний обсяг газу, м3 | C38: =SUM(C7:C37) -> 30359.2 | D38: =SUM(D7:D37) -> 22747.5 | E38: 37531.7 | F38: =SUM(F7:F37) -> 24131.5 | G38: 41862.4 | H38: 10462.8 | I38: =SUM(I7:I37) -> 167095.1
A39: Енергія, МДж | C39: =SUMPRODUCT(B7:B37,C7:C37) -> 1164247.819 | D39: =SUMPRODUCT(B7:B37,D7:D37) -> 872366.041 | E39: =SUMPRODUCT(B7:B37,E7:E37) -> 1439219.142 | F39: =SUMPRODUCT(B7:B37,F7:F37) -> 925380.49 | G39: =SUMPRODUCT(B7:B37,G7:G37) -> 1605408.188 | H39: =SUMPRODUCT(B7:B37,H7:H37) -> 401282.156 | I39: =SUMPRODUCT(B7:B37,I7:I37) -> 6407903.836
A40: Теплота згоряння (середньозважене значення за місяць), МДж/м³ | C40: 38.34909415 | D40: 38.34997433 | E40: 38.34676132 | F40: 38.34740857 | G40: 38.34964522 | H40: 38.3532282 | I40: 38.34884348
A41: Теплота згоряння (середньозважене значення за місяць), ккал/м³ | C41: 9159.523906 | D41: 9159.734133 | E41: 9158.966721 | F41: 9159.121313 | G41: 9159.655527 | H41: 9160.511307 | I41: 9159.464035
A42: Теплота згоряння (середньозважене значення за місяць), кВт*год./м³ | C42: 10.65252615 | D42: 10.65277065 | E42: 10.65187815 | F42: 10.65205794 | G42: 10.65267923 | H42: 10.6536745 | I42: 10.65245652

Sheet додаток
A2: Додаток до Паспорту фізико-хімічних показників природного газу № 63
A4: Область | B4: ГРС, прямий споживач | C4: Cередньозважене значення вищої теплоти згоряння
C5: МДж/м³ | D5: ккал/м³ | E5: кВт*год./м³
A6: Полтавська область | B6: ГРС Лука | C6: 38.34909415 | D6: 9159.523906 | E6: 10.65252615
B7: ГРC Ісківці | C7: 38.34997433 | D7: 9159.734133 | E7: 10.65277065
B8: ГРС Безсали | C8: 38.34676132 | D8: 9158.966721 | E8: 10.65187815
B9: ГРС Яцини | C9: 38.34740857 | D9: 9159.121313 | E9: 10.65205794
B10: ГРС Кейбалівка | C10: 38.34964522 | D10: 9159.655527 | E10: 10.65267923
B11: ГРС Каплинці | C11: 38.3532282 | D11: 9160.511307 | E11: 10.6536745
A12: Середньозважене значення вищої теплоти згоряння по маршруту № 63 | C12: 38.34884348 | D12: 9159.464035 | E12: 10.65245652
A16: Головний інженер Лубенського ЛВУМГ Сирота В.П. | F16: 01.06.2017 р.
A17: Підрозділу підприємства, якому підпорядкована лабораторія | D17: прізвище | E17: підпис | F17: дата
A18: Завідувач лабораторією Лубенського ЛВУМГ Алєксєєнко Н.А. | F18: =F16 -> 01.06.2017 р.
A19: Лабораторія, де здійснювалось вимірювання газу | D19: прізвище | E19: підпис | F19: дата
A20: Начальник служби ГВ та М Шило О.Є | F20: =F16 -> 01.06.2017 р.
A21: Підрозділу, відповідального за облік газу за маршрутом | D21: прізвище | E21: підпис | F21: дата

Sheet variablesList (hidden)
A1: 3 | B1: x:\gaysin | C1: 10, 11, 24, 25, 127, 128, 132, 180, 207, 215 | D1: x:\
B2: x:\Illinci
B3: x:\Talne
